[Event "Estonian Chess Championship 2021"]
[Site "Tallinn, Paul Keres Chess House, Estonia"]
[Date "2021.12.11"]
[Round "1.1"]
[White "Rychagov, Nikita"]
[Black "Kanep, Meelis"]
[Result "1/2-1/2"]
[TimeControl "90 minutes for first 40 moves and 15 min. for the rest of the game with 30 sec."]
[BlackTitle "GM"]
[WhiteFideId "4508394"]
[BlackFideId "4501047"]
[WhiteElo "1985"]
[BlackElo "2433"]

1. e4 {[%clk 01:30:57]} {[%emt 00:00:02]} c5 {[%clk 01:30:43]} {[%emt
00:00:17]} 2. Nf3 {[%clk 01:31:23]} {[%emt 00:00:05]} Nc6 {[%clk 01:30:56]}
{[%emt 00:00:17]} 3. d4 {[%clk 01:31:48]} {[%emt 00:00:04]} cxd4 {[%clk
01:31:21]} {[%emt 00:00:05]} 4. Nxd4 {[%clk 01:32:15]} {[%emt 00:00:03]} Qb6
{[%clk 01:31:38]} {[%emt 00:00:13]} 5. Nb3 {[%clk 01:32:40]} {[%emt 00:00:06]}
Nf6 {[%clk 01:31:49]} {[%emt 00:00:19]} 6. Nc3 {[%clk 01:33:03]} {[%emt
00:00:07]} e6 {[%clk 01:31:55]} {[%emt 00:00:23]} 7. Be3 {[%clk 01:33:07]}
{[%emt 00:00:26]} Qc7 {[%clk 01:31:50]} {[%emt 00:00:35]} 8. a3 {[%clk
01:33:28]} {[%emt 00:00:09]} Be7 {[%clk 01:29:31]} {[%emt 00:02:47]} 9. f4
{[%clk 01:33:38]} {[%emt 00:00:21]} d6 {[%clk 01:25:45]} {[%emt 00:04:16]} 10.
g4 {[%clk 01:33:31]} {[%emt 00:00:37]} a6 {[%clk 01:25:18]} {[%emt 00:00:57]}
11. g5 {[%clk 01:32:42]} {[%emt 00:01:19]} Nd7 {[%clk 01:25:08]} {[%emt
00:00:40]} 12. Qd2 {[%clk 01:31:33]} {[%emt 00:01:40]} b5 {[%clk 01:20:23]}
{[%emt 00:05:15]} 13. O-O-O {[%clk 01:31:38]} {[%emt 00:00:25]} Rb8 {[%clk
01:17:08]} {[%emt 00:03:44]} 14. h4 {[%clk 01:24:55]} {[%emt 00:07:13]} b4
{[%clk 01:12:04]} {[%emt 00:05:34]} 15. axb4 {[%clk 01:25:20]} {[%emt
00:00:05]} Nxb4 {[%clk 01:12:21]} {[%emt 00:00:13]} 16. h5 {[%clk 01:20:52]}
{[%emt 00:04:58]} Qb7 {[%clk 01:04:38]} {[%emt 00:08:13]} 17. h6 {[%clk
01:07:44]} {[%emt 00:13:38]} gxh6 {[%clk 00:56:30]} {[%emt 00:08:38]} 18. Rxh6
{[%clk 01:06:10]} {[%emt 00:02:03]} Nxc2 {[%clk 00:55:15]} {[%emt 00:01:45]} 19.
Kxc2 {[%clk 00:59:23]} {[%emt 00:07:18]} Qxb3+ {[%clk 00:55:16]} {[%emt
00:00:29]} 20. Kc1 {[%clk 00:59:07]} {[%emt 00:00:46]} Nc5 {[%clk 00:43:14]}
{[%emt 00:12:31]} 21. Bxc5 {[%clk 00:55:59]} {[%emt 00:03:38]} dxc5 {[%clk
00:41:29]} {[%emt 00:02:15]} 22. e5 {[%clk 00:51:30]} {[%emt 00:05:00]} Rb4
{[%clk 00:24:43]} {[%emt 00:17:16]} 23. Bd3 {[%clk 00:49:03]} {[%emt 00:02:57]}
Rd4 {[%clk 00:25:04]} {[%emt 00:00:09]} 24. Qh2 {[%clk 00:48:16]} {[%emt
00:01:17]} Bb7 {[%clk 00:18:40]} {[%emt 00:06:54]} 25. Bxh7 {[%clk 00:37:26]}
{[%emt 00:11:19]} Rxd1+ {[%clk 00:17:41]} {[%emt 00:01:29]} 26. Nxd1 {[%clk
00:37:25]} {[%emt 00:00:31]} Qc4+ {[%clk 00:16:10]} {[%emt 00:02:02]} 27. Bc2
{[%clk 00:35:49]} {[%emt 00:02:07]} Rf8 {[%clk 00:16:31]} {[%emt 00:00:08]} 28.
Rh3 {[%clk 00:34:45]} {[%emt 00:01:33]} Kd7 {[%clk 00:10:15]} {[%emt 00:06:47]}
29. Rc3 {[%clk 00:33:20]} {[%emt 00:01:55]} Qf1 {[%clk 00:10:39]} {[%emt
00:00:06]} 30. Rb3 {[%clk 00:24:04]} {[%emt 00:09:47]} Kc8 {[%clk 00:09:25]}
{[%emt 00:01:43]} 31. Bd3 {[%clk 00:23:01]} {[%emt 00:01:33]} Qe1 {[%clk
00:09:32]} {[%emt 00:00:23]} 32. Qc2 {[%clk 00:18:18]} {[%emt 00:05:13]} Rd8
{[%clk 00:08:59]} {[%emt 00:01:03]} 33. Bc4 {[%clk 00:17:40]} {[%emt 00:01:08]}
Rd4 {[%clk 00:08:21]} {[%emt 00:01:08]} 34. Rd3 {[%clk 00:17:19]} {[%emt
00:00:51]} Rxf4 {[%clk 00:05:17]} {[%emt 00:03:35]} 35. Qa4 {[%clk 00:16:46]}
{[%emt 00:01:02]} Rd4 {[%clk 00:05:44]} {[%emt 00:00:02]} 36. Qe8+ {[%clk
00:16:13]} {[%emt 00:01:03]} Bd8 {[%clk 00:05:57]} {[%emt 00:00:17]} 37. Rxd4
{[%clk 00:16:25]} {[%emt 00:00:18]} cxd4 {[%clk 00:06:06]} {[%emt 00:00:21]} 38.
g6 {[%clk 00:16:21]} {[%emt 00:00:34]} Qb4 {[%clk 00:01:32]} {[%emt 00:05:04]}
39. gxf7 {[%clk 00:10:44]} {[%emt 00:06:07]} Qxc4+ {[%clk 00:01:54]} {[%emt
00:00:09]} 40. Kd2 {[%clk 00:26:11]} {[%emt 00:00:03]} Qb4+ {[%clk 00:16:46]}
{[%emt 00:00:37]} 41. Kc1 {[%clk 00:22:50]} {[%emt 00:03:51]} Qc4+ {[%clk
00:03:50]} {[%emt 00:13:26]} 42. Kd2 {[%clk 00:22:58]} {[%emt 00:00:22]} Qb4+
{[%clk 00:02:39]} {[%emt 00:01:41]} 43. Kc1 {[%clk 00:23:24]} {[%emt 00:00:04]}
1/2-1/2

[Event "Estonian Chess Championship 2021"]
[Site "Tallinn, Paul Keres Chess House, Estonia"]
[Date "2021.12.11"]
[Round "1.2"]
[White "Timoshin, Andrei"]
[Black "Andrijashkin, Deniss"]
[Result "1-0"]
[TimeControl "90 minutes for first 40 moves and 15 min. for the rest of the game with 30 sec."]
[WhiteFideId "4503503"]
[BlackFideId "4504631"]
[WhiteElo "2150"]
[BlackElo "2036"]

1. e4 {[%clk 01:30:53]} {[%emt 00:00:06]} e6 {[%clk 01:29:56]} {[%emt
00:01:04]} 2. d4 {[%clk 01:27:55]} {[%emt 00:03:29]} d5 {[%clk 01:30:02]}
{[%emt 00:00:24]} 3. Nd2 {[%clk 01:26:23]} {[%emt 00:02:02]} dxe4 {[%clk
01:26:45]} {[%emt 00:03:47]} 4. Nxe4 {[%clk 01:26:48]} {[%emt 00:00:04]} Nd7
{[%clk 01:27:08]} {[%emt 00:00:07]} 5. Nf3 {[%clk 01:24:32]} {[%emt 00:02:46]}
Ngf6 {[%clk 01:27:31]} {[%emt 00:00:08]} 6. Nxf6+ {[%clk 01:24:24]} {[%emt
00:00:38]} Nxf6 {[%clk 01:27:54]} {[%emt 00:00:07]} 7. Bd3 {[%clk 01:22:08]}
{[%emt 00:02:45]} c5 {[%clk 01:25:54]} {[%emt 00:02:30]} 8. O-O {[%clk
01:10:26]} {[%emt 00:12:12]} cxd4 {[%clk 01:21:17]} {[%emt 00:05:08]} 9. Nxd4
{[%clk 01:10:48]} {[%emt 00:00:08]} Bc5 {[%clk 01:17:48]} {[%emt 00:03:57]} 10.
Nb3 {[%clk 01:09:04]} {[%emt 00:02:16]} Bd6 {[%clk 01:17:38]} {[%emt 00:00:40]}
11. Bg5 {[%clk 01:00:31]} {[%emt 00:09:03]} h6 {[%clk 00:48:28]} {[%emt
00:29:41]} 12. Bb5+ {[%clk 00:32:37]} {[%emt 00:28:24]} Bd7 {[%clk 00:47:05]}
{[%emt 00:01:52]} 13. Bxd7+ {[%clk 00:32:40]} {[%emt 00:00:27]} Qxd7 {[%clk
00:47:21]} {[%emt 00:00:13]} 14. Bxf6 {[%clk 00:32:57]} {[%emt 00:00:14]} gxf6
{[%clk 00:47:48]} {[%emt 00:00:04]} 15. Qf3 {[%clk 00:32:41]} {[%emt 00:00:46]}
Qc7 {[%clk 00:42:25]} {[%emt 00:05:53]} 16. h3 {[%clk 00:31:41]} {[%emt
00:01:30]} f5 {[%clk 00:36:54]} {[%emt 00:06:01]} 17. Rad1 {[%clk 00:28:49]}
{[%emt 00:03:21]} O-O-O {[%clk 00:36:45]} {[%emt 00:00:39]} 18. c4 {[%clk
00:21:06]} {[%emt 00:08:14]} Be5 {[%clk 00:35:07]} {[%emt 00:02:07]} 19. Qe2
{[%clk 00:20:29]} {[%emt 00:01:08]} Rhg8 {[%clk 00:32:33]} {[%emt 00:03:03]} 20.
Rxd8+ {[%clk 00:19:13]} {[%emt 00:01:47]} Rxd8 {[%clk 00:26:22]} {[%emt
00:06:41]} 21. c5 {[%clk 00:19:10]} {[%emt 00:00:33]} Bf4 {[%clk 00:19:17]}
{[%emt 00:07:35]} 22. Qc4 {[%clk 00:14:12]} {[%emt 00:05:29]} Bh2+ {[%clk
00:17:27]} {[%emt 00:02:20]} 23. Kh1 {[%clk 00:14:37]} {[%emt 00:00:05]} Be5
{[%clk 00:17:53]} {[%emt 00:00:04]} 24. Qe2 {[%clk 00:11:58]} {[%emt 00:03:09]}
Bf4 {[%clk 00:17:16]} {[%emt 00:01:07]} 25. Qf3 {[%clk 00:06:55]} {[%emt
00:05:33]} Be5 {[%clk 00:15:07]} {[%emt 00:02:39]} 26. Qe2 {[%clk 00:00:40]}
{[%emt 00:06:45]} Bf6 {[%clk 00:09:51]} {[%emt 00:05:47]} 27. Rc1 {[%clk
00:00:33]} {[%emt 00:00:37]} Qe5 {[%clk 00:07:57]} {[%emt 00:02:24]} 28. Qb5
{[%clk 00:01:01]} {[%emt 00:00:01]} Bg5 {[%clk 00:07:05]} {[%emt 00:01:22]} 29.
Na5 {[%clk 00:00:38]} {[%emt 00:00:53]} Qd5 {[%clk 00:02:15]} {[%emt 00:05:20]}
30. Rc3 {[%clk 00:01:07]} {[%emt 00:00:01]} Bf4 {[%clk 00:02:25]} {[%emt
00:00:20]} 31. Rd3 {[%clk 00:01:03]} {[%emt 00:00:35]} Qe4 {[%clk 00:00:32]}
{[%emt 00:02:23]} 32. Rxd8+ {[%clk 00:00:47]} {[%emt 00:00:46]} Kxd8 {[%clk
00:01:01]} {[%emt 00:00:01]} 33. Qf1 {[%clk 00:00:34]} {[%emt 00:00:43]} Bc7
{[%clk 00:00:37]} {[%emt 00:00:54]} 34. Nc4 {[%clk 00:00:36]} {[%emt 00:00:29]}
Qd4 {[%clk 00:00:34]} {[%emt 00:00:33]} 35. b4 {[%clk 00:00:52]} {[%emt
00:00:14]} Qf4 {[%clk 00:00:38]} {[%emt 00:00:25]} 36. g3 {[%clk 00:00:53]}
{[%emt 00:00:30]} Qf3+ {[%clk 00:00:39]} {[%emt 00:00:29]} 37. Kg1 {[%clk
00:01:16]} {[%emt 00:00:06]} h5 {[%clk 00:00:33]} {[%emt 00:00:36]} 38. Qe1
{[%clk 00:00:32]} {[%emt 00:01:14]} f4 {[%clk 00:00:32]} {[%emt 00:00:31]} 39.
Ne5 {[%clk 00:00:37]} {[%emt 00:00:25]} Bxe5 {[%clk 00:00:33]} {[%emt
00:00:30]} 40. Qxe5 {[%clk 00:16:04]} {[%emt 00:00:02]} fxg3 {[%clk 00:15:57]}
{[%emt 00:00:06]} 41. Qd6+ {[%clk 00:13:51]} {[%emt 00:02:42]} Kc8 {[%clk
00:12:48]} {[%emt 00:03:35]} 42. fxg3 {[%clk 00:03:49]} {[%emt 00:10:36]} Qe3+
{[%clk 00:10:50]} {[%emt 00:02:29]} 43. Kf1 {[%clk 00:04:15]} {[%emt 00:00:03]}
Qf3+ {[%clk 00:07:35]} {[%emt 00:03:44]} 44. Ke1 {[%clk 00:04:41]} {[%emt
00:00:04]} Qc3+ {[%clk 00:06:37]} {[%emt 00:01:27]} 45. Ke2 {[%clk 00:04:55]}
{[%emt 00:00:19]} Qc2+ {[%clk 00:05:43]} {[%emt 00:01:22]} 46. Ke3 {[%clk
00:05:23]} {[%emt 00:00:04]} Qc3+ {[%clk 00:04:51]} {[%emt 00:01:23]} 47. Kf4
{[%clk 00:03:24]} {[%emt 00:02:27]} Qf6+ {[%clk 00:02:59]} {[%emt 00:02:22]} 48.
Ke4 {[%clk 00:03:46]} {[%emt 00:00:08]} Qf5+ {[%clk 00:02:41]} {[%emt
00:00:47]} 49. Ke3 {[%clk 00:01:14]} {[%emt 00:03:01]} e5 {[%clk 00:00:46]}
{[%emt 00:02:27]} 50. Qe7 {[%clk 00:00:36]} {[%emt 00:01:08]} f6 {[%clk
00:00:35]} {[%emt 00:00:41]} 51. h4 {[%clk 00:00:55]} {[%emt 00:00:11]} Qg6
{[%clk 00:00:36]} {[%emt 00:00:29]} 52. Qe6+ {[%clk 00:00:47]} {[%emt
00:00:39]} Kc7 {[%clk 00:00:39]} {[%emt 00:00:25]} 53. Qd6+ {[%clk 00:01:13]}
{[%emt 00:00:06]} Kc8 {[%clk 00:01:04]} {[%emt 00:00:04]} 54. Kd2 {[%clk
00:00:34]} {[%emt 00:01:09]} Qxg3 {[%emt 00:01:04]} 55. Qxf6 {[%clk 00:00:47]}
{[%emt 00:00:15]} Kc7 {[%clk 00:00:33]} {[%emt 00:00:30]} 56. Qe7+ {[%clk
00:00:31]} {[%emt 00:00:45]} Kc6 {[%clk 00:00:38]} {[%emt 00:00:23]} 57. Qe8+
{[%clk 00:00:33]} {[%emt 00:00:29]} Kd5 {[%clk 00:00:51]} {[%emt 00:00:17]} 58.
Qf7+ {[%clk 00:00:35]} {[%emt 00:00:29]} Kd4 {[%clk 00:01:03]} {[%emt
00:00:17]} 59. Qd7+ {[%clk 00:00:34]} {[%emt 00:00:32]} Kc4 {[%clk 00:01:13]}
{[%emt 00:00:19]} 60. Qf7+ {[%clk 00:00:37]} {[%emt 00:00:28]} Kxb4 {[%clk
00:00:35]} {[%emt 00:01:08]} 61. Qxb7+ {[%clk 00:01:03]} {[%emt 00:00:04]} Kxc5
{[%clk 00:01:04]} {[%emt 00:00:01]} 62. Qxa7+ {[%clk 00:01:12]} {[%emt
00:00:21]} Kd5 {[%clk 00:00:41]} {[%emt 00:00:49]} 63. Qb7+ {[%clk 00:00:34]}
{[%emt 00:01:13]} Kd6 {[%clk 00:00:31]} {[%emt 00:00:37]} 64. Qa6+ {[%clk
00:00:44]} {[%emt 00:00:21]} Ke7 {[%clk 00:00:37]} {[%emt 00:00:23]} 65. Qb7+
{[%clk 00:00:34]} {[%emt 00:00:41]} Kf6 {[%clk 00:00:33]} {[%emt 00:00:31]} 66.
Qc6+ {[%clk 00:00:33]} {[%emt 00:00:34]} Kf5 {[%clk 00:00:32]} {[%emt
00:00:30]} 67. Qd7+ {[%clk 00:00:43]} {[%emt 00:00:20]} Ke4 {[%clk 00:00:39]}
{[%emt 00:00:17]} 68. Qh7+ {[%clk 00:00:43]} {[%emt 00:00:37]} Kd4 {[%clk
00:00:50]} {[%emt 00:00:13]} 69. Qa7+ {[%clk 00:00:36]} {[%emt 00:00:43]} Ke4
{[%clk 00:00:39]} {[%emt 00:00:38]} 70. Qa4+ {[%clk 00:00:46]} {[%emt
00:00:22]} Kf5 {[%clk 00:00:44]} {[%emt 00:00:23]} 71. Qc2+ {[%clk 00:00:35]}
{[%emt 00:00:43]} Kf4 {[%clk 00:00:32]} {[%emt 00:00:41]} 72. Qc4+ {[%clk
00:00:34]} {[%emt 00:00:32]} Kf5 {[%clk 00:00:50]} {[%emt 00:00:11]} 73. Qd3+
{[%clk 00:00:57]} {[%emt 00:00:08]} 1-0

[Event "Estonian Chess Championship 2021"]
[Site "Tallinn, Paul Keres Chess House, Estonia"]
[Date "2021.12.11"]
[Round "1.3"]
[White "Pedmanson, Albert"]
[Black "Kull, Tormi"]
[Result "0-1"]
[TimeControl "90 minutes for first 40 moves and 15 min. for the rest of the game with 30 sec."]
[WhiteFideId "4505778"]
[BlackFideId "4510151"]
[WhiteElo "1888"]
[BlackElo "1753"]

1. e4 {[%clk 01:30:19]} {[%emt 00:00:40]} c6 {[%clk 01:30:53]} {[%emt
00:00:08]} 2. d4 {[%clk 01:30:41]} {[%emt 00:00:08]} d5 {[%clk 01:31:18]}
{[%emt 00:00:04]} 3. Nd2 {[%clk 01:30:49]} {[%emt 00:00:22]} dxe4 {[%clk
01:31:41]} {[%emt 00:00:07]} 4. Nxe4 {[%clk 01:31:17]} {[%emt 00:00:03]} Nf6
{[%clk 01:32:04]} {[%emt 00:00:07]} 5. Nxf6+ {[%clk 01:31:42]} {[%emt
00:00:05]} exf6 {[%clk 01:32:28]} {[%emt 00:00:05]} 6. c3 {[%clk 01:31:50]}
{[%emt 00:00:22]} Bd6 {[%clk 01:32:52]} {[%emt 00:00:05]} 7. Bd3 {[%clk
01:32:14]} {[%emt 00:00:06]} O-O {[%clk 01:33:16]} {[%emt 00:00:07]} 8. h3
{[%clk 01:30:07]} {[%emt 00:02:37]} Nd7 {[%clk 01:31:12]} {[%emt 00:02:34]} 9.
Ne2 {[%clk 01:29:20]} {[%emt 00:01:17]} Re8 {[%clk 01:30:40]} {[%emt 00:01:02]}
10. O-O {[%clk 01:29:26]} {[%emt 00:00:25]} Nb6 {[%clk 01:28:01]} {[%emt
00:03:09]} 11. Qc2 {[%clk 01:26:53]} {[%emt 00:03:03]} h5 {[%clk 01:27:42]}
{[%emt 00:00:49]} 12. c4 {[%clk 01:24:07]} {[%emt 00:03:16]} Bc7 {[%clk
01:27:41]} {[%emt 00:00:30]} 13. Be3 {[%clk 01:22:22]} {[%emt 00:02:15]} Be6
{[%clk 01:25:31]} {[%emt 00:02:40]} 14. Rad1 {[%clk 01:19:42]} {[%emt
00:03:10]} Rc8 {[%clk 01:18:28]} {[%emt 00:07:34]} 15. Rfe1 {[%clk 01:15:20]}
{[%emt 00:04:52]} h4 {[%clk 01:10:39]} {[%emt 00:08:18]} 16. b3 {[%clk
01:10:58]} {[%emt 00:04:52]} g5 {[%clk 01:04:54]} {[%emt 00:06:14]} 17. Nc3
{[%clk 01:03:20]} {[%emt 00:08:08]} Kg7 {[%clk 01:02:03]} {[%emt 00:03:21]} 18.
Ne4 {[%clk 01:01:22]} {[%emt 00:02:28]} Nd7 {[%clk 01:01:14]} {[%emt 00:01:19]}
19. Qb2 {[%clk 00:42:55]} {[%emt 00:18:57]} Bf5 {[%clk 00:57:39]} {[%emt
00:04:05]} 20. Nd6 {[%clk 00:41:09]} {[%emt 00:02:16]} Bxd6 {[%clk 00:57:31]}
{[%emt 00:00:38]} 21. Bxf5 {[%clk 00:41:33]} {[%emt 00:00:06]} Qc7 {[%clk
00:46:01]} {[%emt 00:12:00]} 22. c5 {[%clk 00:38:14]} {[%emt 00:03:49]} Bh2+
{[%clk 00:46:15]} {[%emt 00:00:16]} 23. Kh1 {[%clk 00:37:43]} {[%emt 00:01:01]}
Rcd8 {[%clk 00:46:31]} {[%emt 00:00:14]} 24. Qe2 {[%clk 00:31:11]} {[%emt
00:07:01]} Nf8 {[%clk 00:43:03]} {[%emt 00:03:58]} 25. Qc4 {[%clk 00:19:22]}
{[%emt 00:12:20]} Re7 {[%clk 00:38:53]} {[%emt 00:04:39]} 26. Re2 {[%clk
00:17:04]} {[%emt 00:02:48]} Ne6 {[%clk 00:34:34]} {[%emt 00:04:48]} 27. Rde1
{[%clk 00:15:13]} {[%emt 00:02:20]} Rde8 {[%clk 00:33:48]} {[%emt 00:01:17]} 28.
b4 {[%clk 00:08:35]} {[%emt 00:07:09]} Nf4 {[%clk 00:31:55]} {[%emt 00:02:22]}
29. Rd2 {[%clk 00:04:20]} {[%emt 00:04:45]} Nd5 {[%clk 00:31:59]} {[%emt
00:00:26]} 30. Qb3 {[%clk 00:04:27]} {[%emt 00:00:23]} Bf4 {[%clk 00:28:29]}
{[%emt 00:04:00]} 31. Rde2 {[%clk 00:03:42]} {[%emt 00:01:15]} Qd8 {[%clk
00:28:32]} {[%emt 00:00:27]} 32. a3 {[%clk 00:02:14]} {[%emt 00:01:58]} Bb8
{[%clk 00:28:40]} {[%emt 00:00:21]} 33. Kg1 {[%clk 00:00:34]} {[%emt 00:02:10]}
Qc7 {[%clk 00:28:56]} {[%emt 00:00:15]} 34. Kf1 {[%clk 00:00:31]} {[%emt
00:00:33]} Qh2 {[%clk 00:29:09]} {[%emt 00:00:16]} 35. Rd2 {[%clk 00:00:36]}
{[%emt 00:00:24]} Nf4 {[%clk 00:29:19]} {[%emt 00:00:21]} 36. f3 {[%clk
00:00:39]} {[%emt 00:00:27]} Qh1+ {[%clk 00:29:21]} {[%emt 00:00:28]} 0-1

[Event "Estonian Chess Championship 2021"]
[Site "Tallinn, Paul Keres Chess House, Estonia"]
[Date "2021.12.11"]
[Round "1.4"]
[White "Hansson, Markus"]
[Black "Soot, Margus"]
[Result "0-1"]
[TimeControl "90 minutes for first 40 moves and 15 min. for the rest of the game with 30 sec."]
[WhiteFideId "4505620"]
[BlackFideId "4501160"]
[WhiteElo "1662"]
[BlackElo "2117"]

1. e4 {[%clk 01:30:53]} {[%emt 00:00:06]} c6 {[%clk 01:30:55]} {[%emt
00:00:06]} 2. d4 {[%clk 01:31:12]} {[%emt 00:00:10]} d5 {[%clk 01:31:20]}
{[%emt 00:00:05]} 3. e5 {[%clk 01:31:32]} {[%emt 00:00:10]} Bf5 {[%clk
01:31:44]} {[%emt 00:00:06]} 4. Nc3 {[%clk 01:31:48]} {[%emt 00:00:14]} e6
{[%clk 01:30:00]} {[%emt 00:02:14]} 5. g4 {[%clk 01:31:03]} {[%emt 00:01:15]}
Bg6 {[%clk 01:29:01]} {[%emt 00:01:30]} 6. Nge2 {[%clk 01:31:02]} {[%emt
00:00:31]} h6 {[%clk 01:24:16]} {[%emt 00:05:15]} 7. Nf4 {[%clk 01:26:45]}
{[%emt 00:04:47]} Bh7 {[%clk 01:24:21]} {[%emt 00:00:26]} 8. Bd3 {[%clk
01:25:28]} {[%emt 00:01:47]} Bxd3 {[%clk 01:24:38]} {[%emt 00:00:13]} 9. Qxd3
{[%clk 01:25:53]} {[%emt 00:00:04]} Na6 {[%clk 01:22:16]} {[%emt 00:02:52]} 10.
Be3 {[%clk 01:17:20]} {[%emt 00:09:03]} Qd7 {[%clk 01:08:55]} {[%emt 00:13:50]}
11. O-O-O {[%clk 01:02:42]} {[%emt 00:15:08]} O-O-O {[%clk 01:06:00]} {[%emt
00:03:25]} 12. h4 {[%clk 00:59:20]} {[%emt 00:03:51]} Ne7 {[%clk 01:05:27]}
{[%emt 00:01:03]} 13. Nh5 {[%clk 00:53:49]} {[%emt 00:06:02]} Kb8 {[%clk
00:59:49]} {[%emt 00:06:09]} 14. f4 {[%clk 00:53:19]} {[%emt 00:00:59]} c5
{[%clk 00:38:08]} {[%emt 00:22:11]} 15. Qb5 {[%clk 00:33:55]} {[%emt 00:19:54]}
cxd4 {[%clk 00:34:23]} {[%emt 00:04:15]} 16. Qxd7 {[%clk 00:33:56]} {[%emt
00:00:29]} Rxd7 {[%clk 00:34:44]} {[%emt 00:00:09]} 17. Bxd4 {[%clk 00:34:02]}
{[%emt 00:00:24]} Nc6 {[%clk 00:27:14]} {[%emt 00:08:00]} 18. Bf2 {[%clk
00:33:58]} {[%emt 00:00:34]} g6 {[%clk 00:20:49]} {[%emt 00:06:55]} 19. Nf6
{[%clk 00:32:47]} {[%emt 00:01:42]} Rd8 {[%clk 00:21:11]} {[%emt 00:00:08]} 20.
Nb5 {[%clk 00:28:35]} {[%emt 00:04:41]} Be7 {[%clk 00:19:27]} {[%emt 00:02:15]}
21. g5 {[%clk 00:28:09]} {[%emt 00:00:56]} h5 {[%clk 00:19:44]} {[%emt
00:00:13]} 22. Rh3 {[%clk 00:27:26]} {[%emt 00:01:13]} Nc7 {[%clk 00:18:22]}
{[%emt 00:01:52]} 23. Nd4 {[%clk 00:25:33]} {[%emt 00:02:22]} Nxd4 {[%clk
00:18:17]} {[%emt 00:00:36]} 24. Bxd4 {[%clk 00:25:54]} {[%emt 00:00:09]} Na6
{[%clk 00:15:43]} {[%emt 00:03:03]} 25. c3 {[%clk 00:18:51]} {[%emt 00:07:32]}
b6 {[%clk 00:15:38]} {[%emt 00:00:36]} 26. Kc2 {[%clk 00:17:02]} {[%emt
00:02:19]} Kb7 {[%clk 00:16:02]} {[%emt 00:00:06]} 27. b4 {[%clk 00:15:51]}
{[%emt 00:01:41]} Rc8 {[%clk 00:15:46]} {[%emt 00:00:46]} 28. Kb3 {[%clk
00:15:51]} {[%emt 00:00:30]} Rc4 {[%clk 00:15:54]} {[%emt 00:00:22]} 29. a3
{[%clk 00:10:16]} {[%emt 00:06:05]} Nc7 {[%clk 00:13:52]} {[%emt 00:02:31]} 30.
Rdd3 {[%clk 00:10:40]} {[%emt 00:00:07]} Rc8 {[%clk 00:13:49]} {[%emt
00:00:33]} 31. Nd7 {[%clk 00:09:55]} {[%emt 00:01:15]} Nb5 {[%clk 00:13:34]}
{[%emt 00:00:45]} 32. Rhf3 {[%clk 00:09:42]} {[%emt 00:00:40]} R8c7 {[%clk
00:12:40]} {[%emt 00:01:27]} 33. Nf6 {[%clk 00:10:07]} {[%emt 00:00:05]} Nxd4+
{[%clk 00:11:44]} {[%emt 00:01:25]} 34. Rxd4 {[%clk 00:07:40]} {[%emt
00:02:56]} Rxd4 {[%clk 00:11:34]} {[%emt 00:00:40]} 35. cxd4 {[%clk 00:08:08]}
{[%emt 00:00:02]} Bxf6 {[%clk 00:10:43]} {[%emt 00:01:21]} 36. Rc3 {[%clk
00:01:26]} {[%emt 00:07:11]} Rxc3+ {[%clk 00:09:24]} {[%emt 00:01:49]} 37. Kxc3
{[%clk 00:01:51]} {[%emt 00:00:05]} Be7 {[%clk 00:09:48]} {[%emt 00:00:06]} 38.
Kb3 {[%clk 00:01:48]} {[%emt 00:00:34]} Kc6 {[%clk 00:10:06]} {[%emt 00:00:12]}
39. Ka4 {[%clk 00:02:03]} {[%emt 00:00:14]} b5+ {[%clk 00:06:57]} {[%emt
00:03:39]} 40. Kb3 {[%clk 00:17:25]} {[%emt 00:00:08]} a5 {[%clk 00:22:24]}
{[%emt 00:00:03]} 41. Kc3 {[%clk 00:17:46]} {[%emt 00:00:09]} axb4+ {[%clk
00:22:44]} {[%emt 00:00:11]} 42. axb4 {[%clk 00:18:10]} {[%emt 00:00:06]} Bxb4+
{[%clk 00:23:07]} {[%emt 00:00:07]} 43. Kxb4 {[%clk 00:18:32]} {[%emt
00:00:07]} Kb6 {[%clk 00:23:33]} {[%emt 00:00:04]} 44. Kb3 {[%clk 00:13:10]}
{[%emt 00:05:52]} Ka5 {[%clk 00:23:56]} {[%emt 00:00:07]} 45. Ka3 {[%clk
00:13:36]} {[%emt 00:00:05]} b4+ {[%clk 00:24:21]} {[%emt 00:00:05]} 46. Kb3
{[%clk 00:14:03]} {[%emt 00:00:03]} Kb5 {[%clk 00:24:46]} {[%emt 00:00:04]} 0-1